fUSD/lending_fUSD_20251001
["ID","MTS","AMOUNT","RATE_DAILY","PERIOD"]
[388638836,1759284638647,-576.50679734,0.00024657,2]
[388638837,1759284638656,-599.96,0.00024657,2]
[388638838,1759284638666,-185.21603642,0.00024657,2]
[388638839,1759284638682,-1394.55396358,0.00024657,2]
[388638840,1759284638692,-2519.75739918,0.00024657,2]
[388638841,1759284638704,-810.08260082,0.00024657,2]
[388638842,1759284638714,-953.25,0.00024657,2]
[388638843,1759284638723,-500.0,0.00024657,2]
[388638844,1759284638732,-347.00371973,0.00024657,2]
[388638845,1759284638752,-282.24628027,0.00024657,2]
[388638846,1759284638762,-500.0,0.00024657,2]
[388638847,1759284638771,-6.9567214,0.00024657,2]
[388638848,1759284638784,-322.38503972,0.00024657,2]
[388638849,1759284638807,-170.65823888,0.00024657,2]
[388638850,1759284638816,-500.0,0.00024657,2]
[388638851,1759284638826,-529.52,0.00024657,2]
[388638852,1759284638836,-638.41,0.00024657,2]
[388638853,1759284638845,-500.0,0.00024657,2]
[388638854,1759284638855,-2053.24,0.00024657,2]
[388638855,1759284638864,-500.0,0.00024657,2]
[388638856,1759284638874,-2597.14,0.00024657,2]
[388638857,1759284638884,-855.07,0.00024657,2]
[388638858,1759284638893,-2382.61,0.00024657,2]
[388638859,1759284638903,-500.0,0.00024657,2]
[388638860,1759284638912,-500.0,0.00024657,2]
[388638861,1759284638922,-1240.27,0.00024657,2]
[388638862,1759284638931,-500.0,0.00024657,2]
[388638863,1759284638940,-500.0,0.00024657,2]
[388638864,1759284638949,-500.0,0.00024657,2]
[388638865,1759284638959,-411.81959687,0.00024657,2]
[388638866,1759284638969,-500.0,0.00024657,2]
[388638867,1759284638979,-500.0,0.00024657,2]
[388638868,1759284638989,-151.0,0.00024657,2]
[388638869,1759284638998,-151.0,0.00024657,2]
[388638870,1759284639008,-151.0,0.00024657,2]
[388638871,1759284639017,-151.0,0.00024657,2]
[388638872,1759284639027,-151.0,0.00024657,2]
[388638873,1759284639036,-818.14,0.00024657,2]
[388638874,1759284639048,-151.0,0.00024657,2]
[388638875,1759284639059,-500.0,0.00024657,2]
[388638876,1759284639069,-151.0,0.00024657,2]
[388638877,1759284639079,-151.0,0.00024657,2]
[388638878,1759284639089,-2146.23,0.00024657,2]
[388638879,1759284639098,-205.33669399,0.00024657,2]
[388638880,1759284639108,-151.0,0.00024657,2]
[388638881,1759284639117,-151.0,0.00024657,2]
[388638882,1759284639127,-313.2876503,0.00024657,2]
[388638883,1759284639137,-1814.54,0.00024657,2]
[388638884,1759284639145,-500.0,0.00024657,2]
[388638885,1759284639154,-524.37,0.00024657,2]
[388638886,1759284639164,-517.38,0.00024657,2]
[388638887,1759284639174,-500.0,0.00024657,2]
[388638888,1759284639183,-650.45,0.00024657,2]
[388638889,1759284639192,-500.0,0.00024657,2]
[388638890,1759284639201,-500.0,0.00024657,2]
[388638891,1759284639210,-151.0,0.00024657,2]
[388638892,1759284639219,-151.0,0.00024657,2]
[388638893,1759284639228,-151.0,0.00024657,2]
[388638894,1759284639237,-151.0,0.00024657,2]
[388638895,1759284639247,-500.0,0.00024657,2]
[388638896,1759284639256,-298.98818925,0.00024657,2]
[388638897,1759284639266,-151.0,0.00024657,2]
[388638898,1759284639275,-796.14,0.00024657,2]
[388638899,1759284639284,-500.0,0.00024657,2]
[388638900,1759284639293,-500.0,0.00024657,2]
[388638901,1759284639303,-500.0,0.00024657,2]
[388638902,1759284639311,-396.37534169,0.00024657,2]
[388638903,1759284639321,-686.31,0.00024657,2]
[388638904,1759284639329,-151.0,0.00024657,2]
[388638905,1759284639338,-500.0,0.00024657,2]
[388638906,1759284639348,-500.0,0.00024657,2]
[388638907,1759284639357,-689.09,0.00024657,2]
[388638908,1759284639365,-500.0,0.00024657,2]
[388638909,1759284639374,-151.0,0.00024657,2]
[388638910,1759284639384,-500.0,0.00024657,2]
[388638911,1759284639393,-1808.6026551,0.00024657,2]
[388638912,1759284639410,-294.84302077,0.00024657,2]
[388638913,1759284639421,-1041.80432413,0.00024657,2]
[388638915,1759284639431,-500.0,0.00024657,2]
[388638916,1759284639440,-151.0,0.00024657,2]
[388638918,1759284639449,-42.1718059,0.00024657,2]
[388638921,1759284639460,-457.8281941,0.00024657,2]
[388638922,1759284639470,-500.0,0.00024657,2]
[388638923,1759284639479,-151.0,0.00024657,2]
[388638924,1759284639488,-500.0,0.00024657,2]
[388638925,1759284639498,-447.042091,0.00024657,2]
[388638926,1759284639508,-52.957909,0.00024657,2]
[388638927,1759284639518,-500.0,0.00024657,2]
[388638928,1759284639527,-151.0,0.00024657,2]
[388638929,1759284639536,-500.0,0.00024657,2]
[388638930,1759284639545,-151.0,0.00024657,2]
[388638931,1759284639555,-347.74363133,0.00024657,2]
[388638932,1759284639567,-1223.29132686,0.00024657,2]
[388638938,1759284641916,-3097.90109956,0.00021581,2]
[388638939,1759284641930,-582.84819204,0.00021581,2]
[388638940,1759284641943,-581.0877084,0.00021581,2]
[388638941,1759284641954,-470.88903964,0.00024557,2]
[388638942,1759284641975,-519.1908902,0.00024557,2]
[388638943,1759284641989,-1332.97734714,0.00024557,2]
[388638944,1759284641999,-1529.95504181,0.00024657,2]
[388638945,1759284642010,-500.0,0.00024657,2]
[388638946,1759284642020,-1282.4833133,0.00024657,2]
[388638947,1759284642041,-224.5066867,0.00024657,2]
[388638948,1759284642059,-1481.41,0.00024657,2]
[388638949,1759284642068,-500.0,0.00024657,2]
[388638950,1759284642077,-500.0,0.00024657,2]
[388638951,1759284642088,-741.48,0.00024657,2]
[388638952,1759284642099,-594.6,0.00024657,2]
[388638953,1759284642108,-1105.43,0.00024657,2]
[388638954,1759284642118,-500.0,0.00024657,2]
[388638955,1759284642131,-289.82970628,0.00024657,2]
[388638960,1759284642545,-902.684,0.00021581,2]
[388638961,1759284642555,-210.17029372,0.00024657,2]
[388638962,1759284642564,-31.24570628,0.00024657,2]
[388638963,1759284642575,-407.75557322,0.00024657,2]
[388638964,1759284642587,-1897.74363316,0.00024657,2]
[388638969,1759284642659,-136.22508734,0.00024657,2]
[388638971,1759284642668,-177.89884066,0.00024657,2]
[388638973,1759284642679,-322.10115934,0.00024657,2]
[388638975,1759284642689,-500.0,0.00024657,2]
[388638977,1759284642698,-500.0,0.00024657,2]
[388638979,1759284642707,-876.48,0.00024657,2]
[388638981,1759284642717,-500.0,0.00024657,2]
[388638983,1759284642726,-1680.87,0.00024657,2]
[388638984,1759284642735,-1385.53,0.00024657,2]
[388638985,1759284642753,-1436.58,0.00024657,2]
[388638986,1759284642765,-1707.83,0.00024657,2]
[388638987,1759284642775,-500.0,0.00024657,2]
[388638988,1759284642785,-500.0,0.00024657,2]
[388638989,1759284642795,-506.53,0.00024657,2]
[388638990,1759284642804,-2074.07458334,0.00024657,2]
[388638991,1759284642841,-147.67541666,0.00024657,2]
[388638992,1759284642851,-531.05,0.00024657,2]
[388638993,1759284642860,-2321.27458334,0.00024657,2]
[388638994,1759284642872,-69.81541666,0.00024657,2]
[388638995,1759284642882,-1430.22561147,0.00024657,2]
[388638996,1759284642894,-2.31438853,0.00024657,2]
[388638997,1759284642903,-574.38,0.00024657,2]
[388638998,1759284642913,-2079.59,0.00024657,2]
[388638999,1759284642923,-500.0,0.00024657,2]
[388639000,1759284642932,-213.55072657,0.00024657,2]
[388639001,1759284642944,-740.42271886,0.00024657,2]
[388639002,1759284643398,-358.09868615,0.00022876,2]
[388639003,1759284643408,-582.66852097,0.00022876,2]
[388639004,1759284643417,-163.94723106,0.00022876,2]
[388639005,1759284643427,-1857.08123593,0.00024657,2]
[388639006,1759284643442,-70.07531864,0.00024657,2]
[388639007,1759284643451,-500.0,0.00024657,2]
[388639008,1759284643461,-1478.44,0.00024657,2]
[388639009,1759284643471,-725.91,0.00024657,2]
[388639010,1759284643480,-4260.81,0.00024657,2]
[388639011,1759284643490,-500.0,0.00024657,2]
[388639012,1759284643499,-500.0,0.00024657,2]
[388639013,1759284643509,-3786.9,0.00024657,2]
[388639014,1759284643518,-500.0,0.00024657,2]
[388639015,1759284643527,-831.7,0.00024657,2]
[388639016,1759284643538,-343.7096089,0.00024657,2]
[388639017,1759284643547,-1915.16,0.00024657,2]
[388639018,1759284643557,-500.0,0.00024657,2]
[388639019,1759284643567,-500.0,0.00024657,2]
[388639020,1759284643578,-500.0,0.00024657,2]
[388639021,1759284643588,-500.0,0.00024657,2]
[388639022,1759284643599,-500.0,0.00024657,2]
[388639023,1759284643610,-500.0,0.00024657,2]
[388639024,1759284643620,-500.0,0.00024657,2]
[388639025,1759284643629,-4805.32,0.00024657,2]
[388639026,1759284643639,-845.47,0.00024657,2]
[388639027,1759284643649,-151.0,0.00024657,7]
[388639028,1759284643658,-500.0,0.00024657,2]
[388639029,1759284643667,-500.0,0.00024657,2]
[388639030,1759284643677,-175.513032,0.00024657,7]
[388639031,1759284643686,-3699.45,0.00024657,2]
[388639032,1759284643696,-500.0,0.00024657,2]
[388639033,1759284643705,-1139.75,0.00024657,2]
[388639034,1759284643715,-757.55,0.00024657,2]
[388639035,1759284643725,-500.0,0.00024657,2]
[388639036,1759284643734,-500.0,0.00024657,2]
[388639037,1759284643744,-500.0,0.00024657,2]
[388639038,1759284643754,-500.0,0.00024657,2]
[388639039,1759284643763,-500.0,0.00024657,2]
[388639040,1759284643772,-543.95532446,0.00024657,2]
[388639041,1759284643782,-4493.02,0.00024657,2]
[388639042,1759284643792,-4519.32,0.00024657,2]
[388639043,1759284643802,-863.58,0.00024657,2]
[388639044,1759284643812,-2637.21,0.00024657,2]
[388639045,1759284643821,-500.0,0.00024657,2]
[388639046,1759284643831,-500.0,0.00024657,2]
[388639047,1759284643840,-359.38963175,0.00024657,2]
[388639048,1759284643849,-500.0,0.00024657,2]
[388639049,1759284643858,-4696.77,0.00024657,2]
[388639050,1759284643868,-3008.04,0.00024657,2]
[388639051,1759284643877,-1211.02,0.00024657,2]
[388639052,1759284643887,-500.0,0.00024657,2]
[388639053,1759284643896,-500.0,0.00024657,2]
[388639054,1759284643906,-1653.13,0.00024657,2]
[388639055,1759284643916,-683.51,0.00024657,2]
[388639056,1759284643925,-382.65993186,0.00024657,2]
[388639057,1759284643935,-500.0,0.00024657,2]
[388639058,1759284643944,-2594.03,0.00024657,2]
[388639059,1759284643953,-500.0,0.00024657,2]
[388639060,1759284643962,-500.0,0.00024657,2]
[388639061,1759284643972,-500.0,0.00024657,2]
[388639062,1759284643981,-622.14,0.00024657,2]
[388639063,1759284643990,-500.0,0.00024657,2]
[388639064,1759284644000,-500.0,0.00024657,2]
[388639065,1759284644010,-500.0,0.00024657,2]
[388639066,1759284644019,-321.92304438,0.00024657,2]
[388639067,1759284644028,-2995.81,0.00024657,2]
[388639068,1759284644037,-764.73,0.00024657,2]
[388639069,1759284644050,-500.0,0.00024657,2]
[388639070,1759284644059,-500.37381595,0.00024657,2]
[388639071,1759284644069,-500.0,0.00024657,2]
[388639072,1759284644078,-500.0,0.00024657,2]
[388639073,1759284644089,-802.3,0.00024657,2]
[388639074,1759284644099,-5000.53,0.00024657,2]
[388639075,1759284644109,-500.0,0.00024657,2]
[388639076,1759284644118,-1616.38,0.00024657,2]
[388639077,1759284644128,-804.81,0.00024657,2]
[388639078,1759284644137,-500.0,0.00024657,2]
[388639079,1759284644147,-500.0,0.00024657,2]
[388639080,1759284644156,-500.0,0.00024657,2]
[388639081,1759284644166,-2216.05,0.00024657,2]
[388639082,1759284644176,-604.12,0.00024657,2]
[388639083,1759284644185,-3103.49,0.00024657,2]
[388639084,1759284644194,-500.0,0.00024657,2]
[388639085,1759284644204,-2576.11,0.00024657,2]
[388639086,1759284644214,-500.99197118,0.00024657,2]
[388639087,1759284644224,-760.99,0.00024657,2]
[388639088,1759284644234,-2229.26,0.00024657,2]
[388639089,1759284644243,-1031.39,0.00024657,2]
[388639090,1759284644253,-500.0,0.00024657,2]
[388639091,1759284644262,-426.43049956,0.00024657,2]
[388639092,1759284644272,-2943.42,0.00024657,2]
[388639093,1759284644282,-500.0,0.00024657,2]
[388639094,1759284644293,-2779.51,0.00024657,2]
[388639095,1759284644302,-2928.93,0.00024657,2]
[388639096,1759284644312,-500.0,0.00024657,2]
[388639097,1759284644321,-2992.03,0.00024657,2]
[388639098,1759284644331,-500.34062808,0.00024657,2]
[388639099,1759284644340,-500.0,0.00024657,2]
[388639100,1759284644349,-2415.99,0.00024657,2]
[388639101,1759284644359,-500.0,0.00024657,2]
[388639102,1759284644368,-500.0,0.00024657,2]
[388639103,1759284644377,-500.0,0.00024657,2]
[388639104,1759284644386,-500.0,0.00024657,2]
[388639105,1759284644395,-500.0,0.00024657,2]
[388639106,1759284644405,-1038.6,0.00024657,2]
[388639107,1759284644414,-500.0,0.00024657,2]
[388639108,1759284644423,-500.0,0.00024657,2]
[388639109,1759284644433,-3850.06,0.00024657,2]
[388639110,1759284644442,-3887.22,0.00024657,2]
[388639111,1759284644452,-3017.89,0.00024657,2]
[388639112,1759284644462,-837.05,0.00024657,2]
[388639113,1759284644471,-3180.75,0.00024657,2]
[388639114,1759284644481,-500.0,0.00024657,2]
[388639115,1759284644490,-500.0,0.00024657,2]
[388639116,1759284644500,-1008.51,0.00024657,2]
[388639117,1759284644510,-4440.6,0.00024657,2]
[388639118,1759284644519,-500.0,0.00024657,2]
[388639119,1759284644529,-500.0,0.00024657,2]
[388639120,1759284644538,-500.0,0.00024657,2]
[388639121,1759284644547,-500.0,0.00024657,2]
[388639122,1759284644874,-3427.36,0.00024657,2]
[388639123,1759284644894,-1678.98,0.00024657,2]
[388639124,1759284644908,-2378.04,0.00024657,2]
[388639125,1759284644917,-3826.35,0.00024657,2]
[388639126,1759284644927,-500.0,0.00024657,2]
[388639127,1759284644936,-1712.57,0.00024657,2]
[388639128,1759284644945,-500.0,0.00024657,2]
[388639129,1759284644954,-151.0,0.00024657,7]
[388639130,1759284644963,-200.280267,0.00024657,7]
[388639131,1759284644972,-2811.65,0.00024657,2]
[388639132,1759284644981,-500.0,0.00024657,2]
[388639133,1759284644991,-230.012935,0.00024657,7]
[388639134,1759284645000,-500.0,0.00024657,2]
[388639135,1759284645009,-3145.07,0.00024657,2]
[388639136,1759284645018,-500.0,0.00024657,2]
[388639137,1759284645028,-500.0,0.00024657,2]
[388639138,1759284645037,-514.15,0.00024657,2]
[388639139,1759284645047,-500.0,0.00024657,2]
[388639140,1759284645060,-200.815719,0.00024657,2]
[388639141,1759284645069,-4312.08,0.00024657,2]
[388639142,1759284645079,-1103.2,0.00024657,2]
[388639143,1759284645088,-500.0,0.00024657,2]
[388639144,1759284645098,-500.0,0.00024657,2]
[388639145,1759284645108,-2818.38,0.00024657,2]
[388639146,1759284645117,-869.61,0.00024657,2]
[388639147,1759284645126,-500.0,0.00024657,2]
[388639148,1759284645135,-2481.55,0.00024657,2]
[388639149,1759284645145,-500.0,0.00024657,2]
[388639150,1759284645154,-996.01,0.00024657,2]
[388639151,1759284645163,-2011.06,0.00024657,2]
[388639152,1759284645172,-606.41667567,0.00024657,2]
[388639153,1759284645181,-549.88,0.00024657,2]
[388639154,1759284645191,-500.0,0.00024657,2]
[388639155,1759284645200,-3384.86,0.00024657,2]
[388639156,1759284645209,-500.0,0.00024657,2]
[388639157,1759284645220,-500.0,0.00024657,2]
[388639158,1759284645229,-907.02,0.00024657,2]
[388639159,1759284645238,-1907.29,0.00024657,2]
[388639160,1759284645248,-500.0,0.00024657,2]
[388639161,1759284645257,-2012.96,0.00024657,2]
[388639162,1759284645266,-500.0,0.00024657,2]
[388639163,1759284645275,-502.40228613,0.00024657,2]
[388639164,1759284645284,-179.230442,0.00024657,7]
[388639165,1759284645294,-471.65977273,0.00024657,2]
[388639166,1759284645303,-762.54,0.00024657,2]
[388639167,1759284645313,-500.0,0.00024657,2]
[388639168,1759284645322,-500.40456564,0.00024657,2]
[388639169,1759284645332,-2574.4,0.00024657,2]
[388639170,1759284645342,-3976.53,0.00024657,2]
[388639171,1759284645352,-500.0,0.00024657,2]
[388639172,1759284645361,-500.0,0.00024657,2]
[388639173,1759284645371,-771.48,0.00024657,2]
[388639174,1759284645380,-500.0,0.00024657,2]
[388639175,1759284645389,-500.80006297,0.00024657,2]
[388639176,1759284645398,-1760.92,0.00024657,2]
[388639177,1759284645407,-500.0,0.00024657,2]
[388639178,1759284645417,-500.0,0.00024657,2]
[388639179,1759284645426,-500.0,0.00024657,2]
[388639180,1759284645435,-534.7,0.00024657,2]
[388639181,1759284645444,-2927.5,0.00024657,2]
[388639182,1759284645453,-2109.19,0.00024657,2]
[388639183,1759284645462,-500.0,0.00024657,2]
[388639184,1759284645471,-500.0,0.00024657,2]
[388639185,1759284645482,-3449.42,0.00024657,2]
[388639186,1759284645491,-500.0,0.00024657,2]
[388639187,1759284645500,-500.0,0.00024657,2]
[388639188,1759284645510,-500.0,0.00024657,2]
[388639190,1759284645519,-1049.22,0.00024657,2]
[388639192,1759284645528,-792.43,0.00024657,2]
[388639194,1759284645537,-500.0,0.00024657,2]
[388639196,1759284645547,-500.0,0.00024657,2]
[388639197,1759284645556,-2725.69,0.00024657,2]
[388639198,1759284645565,-500.0,0.00024657,2]
[388639199,1759284645574,-500.0,0.00024657,2]
[388639200,1759284645584,-500.0,0.00024657,2]
[388639201,1759284645594,-3666.49,0.00024657,2]
[388639202,1759284645603,-503.97592175,0.00024657,2]
[388639203,1759284645612,-707.08,0.00024657,2]
[388639204,1759284645622,-500.0,0.00024657,2]
[388639205,1759284645631,-500.52270871,0.00024657,2]
[388639206,1759284645639,-500.0,0.00024657,2]
[388639207,1759284645648,-500.0,0.00024657,2]
[388639208,1759284645657,-500.0,0.00024657,2]
[388639209,1759284645667,-500.0,0.00024657,2]
[388639210,1759284645676,-4113.74,0.00024657,2]
[388639211,1759284645685,-500.0,0.00024657,2]
[388639212,1759284645695,-3686.07,0.00024657,2]
[388639213,1759284645703,-500.0,0.00024657,2]
[388639214,1759284645712,-500.0,0.00024657,2]
[388639215,1759284645721,-1477.59,0.00024657,2]
[388639216,1759284645731,-3585.44,0.00024657,2]
[388639217,1759284645740,-500.0,0.00024657,2]
[388639218,1759284645749,-500.0,0.00024657,2]
[388639219,1759284645758,-3883.43,0.00024657,2]
[388639220,1759284645767,-500.0,0.00024657,2]
[388639221,1759284645776,-1047.52,0.00024657,2]
[388639222,1759284645785,-500.0,0.00024657,2]
[388639223,1759284645794,-788.45,0.00024657,2]
[388639224,1759284645803,-500.0,0.00024657,2]
[388639225,1759284645812,-3134.93,0.00024657,2]
[388639226,1759284645822,-500.0,0.00024657,2]
[388639227,1759284645831,-500.0,0.00024657,2]
[388639228,1759284645841,-500.0,0.00024657,2]
[388639229,1759284645851,-500.0,0.00024657,2]
[388639230,1759284645860,-1000.0,0.00024657,2]
[388639231,1759284645869,-598.95,0.00024657,2]
[388639232,1759284645878,-500.0,0.00024657,2]
[388639233,1759284645888,-500.0,0.00024657,2]
[388639234,1759284645897,-500.0,0.00024657,2]
[388639235,1759284645906,-500.0,0.00024657,2]
[388639236,1759284645915,-500.0,0.00024657,2]
[388639237,1759284645925,-500.0,0.00024657,2]
[388639238,1759284645934,-500.0,0.00024657,2]
[388639239,1759284645943,-500.0,0.00024657,2]
[388639240,1759284645952,-500.0,0.00024657,2]
[388639241,1759284645961,-576.67,0.00024657,2]
[388639242,1759284645970,-501.36116643,0.00024657,2]
[388639243,1759284645979,-3025.23,0.00024657,2]
[388639244,1759284645988,-500.0,0.00024657,2]
[388639245,1759284645996,-500.0,0.00024657,2]
[388639246,1759284646006,-1504.51,0.00024657,2]
[388639247,1759284646015,-500.0,0.00024657,2]
[388639248,1759284646024,-500.0,0.00024657,2]
[388639249,1759284646033,-500.0,0.00024657,2]
[388639250,1759284646042,-841.39,0.00024657,2]
[388639251,1759284646054,-981.07,0.00024657,2]
[388639252,1759284646064,-3539.3,0.00024657,2]
[388639253,1759284646073,-3667.47,0.00024657,2]
[388639254,1759284646084,-500.0,0.00024657,2]
[388639255,1759284646094,-939.31,0.00024657,2]
[388639256,1759284646104,-3153.9,0.00024657,2]
[388639257,1759284646114,-500.0,0.00024657,2]
[388639258,1759284646123,-500.0,0.00024657,2]
[388639259,1759284646135,-500.0,0.00024657,2]
[388639260,1759284646145,-500.0,0.00024657,2]
[388639261,1759284646155,-500.0,0.00024657,2]
[388639262,1759284646164,-500.0,0.00024657,2]
[388639263,1759284646173,-3943.85,0.00024657,2]
[388639264,1759284646182,-4049.33,0.00024657,2]
[388639265,1759284646192,-500.0,0.00024657,2]
[388639266,1759284646201,-500.0,0.00024657,2]
[388639268,1759284646210,-151.047984,0.00024657,2]
[388639270,1759284646218,-2942.72,0.00024657,2]
[388639272,1759284646228,-500.0,0.00024657,2]
[388639274,1759284646237,-4633.32,0.00024657,2]
[388639276,1759284646246,-500.0,0.00024657,2]
[388639278,1759284646255,-1306.16,0.00024657,2]
[388639280,1759284646264,-500.0,0.00024657,2]
[388639282,1759284646273,-500.0,0.00024657,2]
[388639284,1759284646282,-852.88,0.00024657,2]
[388639287,1759284646291,-1672.05,0.00024657,2]
[388639289,1759284646299,-500.0,0.00024657,2]
[388639290,1759284646309,-501.70475645,0.00024657,2]
[388639291,1759284646319,-740.26,0.00024657,2]
[388639292,1759284646329,-500.0,0.00024657,2]
[388639293,1759284646339,-500.0,0.00024657,2]
[388639294,1759284646348,-500.0,0.00024657,2]
[388639295,1759284646357,-2621.88,0.00024657,2]
[388639296,1759284646366,-500.0,0.00024657,2]
[388639297,1759284646375,-500.84345349,0.00024657,2]
[388639298,1759284646384,-2583.81,0.00024657,2]
[388639299,1759284646393,-500.0,0.00024657,2]
[388639300,1759284646402,-688.59,0.00024657,2]
[388639301,1759284646412,-1317.51,0.00024657,2]
[388639302,1759284646421,-526.32,0.00024657,2]
[388639303,1759284646431,-500.0,0.00024657,2]
[388639304,1759284646440,-500.0,0.00024657,2]
[388639305,1759284646449,-954.88,0.00024657,2]
[388639306,1759284646458,-500.0,0.00024657,2]
[388639307,1759284646467,-500.0,0.00024657,2]
[388639308,1759284646477,-3374.5,0.00024657,2]
[388639309,1759284646487,-500.0,0.00024657,2]
[388639310,1759284646496,-923.51,0.00024657,2]
[388639311,1759284646505,-4166.1,0.00024657,2]
[388639312,1759284646514,-3065.99,0.00024657,2]
[388639313,1759284646523,-500.0,0.00024657,2]
[388639314,1759284646532,-3389.25,0.00024657,2]
[388639315,1759284646542,-500.47786011,0.00024657,2]
[388639316,1759284646551,-2106.028622,0.00024657,2]
[388639317,1759284646560,-499.55701843,0.00024657,2]
[388639318,1759284646569,-500.38467953,0.00024657,2]
[388639319,1759284646579,-500.81598258,0.00024657,2]
[388639320,1759284646588,-500.0,0.00024657,2]
[388639321,1759284646597,-500.0,0.00024657,2]
[388639322,1759284646608,-500.0,0.00024657,2]
[388639323,1759284646618,-502.12410613,0.00024657,2]
[388639324,1759284646629,-206.68393591,0.00024657,2]
[388639325,1759284646638,-500.55848804,0.00024657,2]
[388639326,1759284646647,-500.0,0.00024657,2]
[388639327,1759284646656,-500.0,0.00024657,2]
[388639328,1759284646665,-1745.63,0.00024657,2]
[388639329,1759284646674,-504.39218722,0.00024657,2]
[388639330,1759284646683,-459.894482,0.00024657,2]
[388639331,1759284646692,-500.0,0.00024657,2]
[388639332,1759284646702,-500.0,0.00024657,2]
[388639333,1759284646711,-500.0,0.00024657,2]
[388639334,1759284646720,-500.0,0.00024657,2]
[388639335,1759284646729,-500.0,0.00024657,2]
[388639336,1759284646738,-500.0,0.00024657,2]
[388639337,1759284646746,-500.0,0.00024657,2]
[388639338,1759284646756,-500.0,0.00024657,2]
[388639339,1759284646765,-500.0,0.00024657,2]
[388639340,1759284646773,-500.0,0.00024657,2]
[388639341,1759284646783,-500.0,0.00024657,2]
[388639342,1759284646792,-349.98077675,0.00024657,2]
[388639343,1759284646801,-1058.05,0.00024657,2]
[388639344,1759284646810,-1882.79,0.00024657,2]
[388639345,1759284646819,-682.12,0.00024657,2]
[388639346,1759284646828,-500.0,0.00024657,2]
[388639347,1759284646837,-2515.36,0.00024657,2]
[388639348,1759284646847,-500.0,0.00024657,2]
[388639349,1759284646856,-500.0,0.00024657,2]
[388639350,1759284646865,-3321.75,0.00024657,2]
[388639351,1759284646874,-500.0,0.00024657,2]
[388639352,1759284646884,-500.0,0.00024657,2]
[388639353,1759284646893,-500.0,0.00024657,2]
[388639354,1759284646902,-500.0,0.00024657,2]
[388639355,1759284646911,-662.12,0.00024657,2]
[388639356,1759284646919,-500.0,0.00024657,2]
[388639357,1759284646929,-4263.67,0.00024657,2]
[388639358,1759284646938,-500.0,0.00024657,2]
[388639359,1759284646947,-500.0,0.00024657,2]
[388639360,1759284646956,-500.0,0.00024657,2]
[388639361,1759284646965,-3050.97,0.00024657,2]
[388639362,1759284646974,-891.73,0.00024657,2]
[388639363,1759284646983,-2351.12,0.00024657,2]
[388639364,1759284646992,-500.0,0.00024657,2]
[388639365,1759284647001,-4715.61216,0.00024657,2]
[388639366,1759284647010,-500.0,0.00024657,2]
[388639367,1759284647019,-500.0,0.00024657,2]
[388639368,1759284647028,-500.0,0.00024657,2]
[388639369,1759284647038,-500.0,0.00024657,2]
[388639370,1759284647048,-500.0,0.00024657,2]
[388639371,1759284647060,-500.0,0.00024657,2]
[388639372,1759284647069,-3789.08,0.00024657,2]
[388639373,1759284647078,-500.0,0.00024657,2]
[388639374,1759284647088,-1338.74,0.00024657,2]
[388639375,1759284647098,-500.0,0.00024657,2]